fUST/lending_fUST_20241112
["ID","MTS","AMOUNT","RATE_DAILY","PERIOD"]
[342037507,1731377469011,-500.0,0.00022739,2]
[342037508,1731377469020,-500.0,0.00022739,2]
[342037509,1731377469135,-501.95881715,0.00022739,2]
[342037510,1731377469144,-500.0,0.00022739,2]
[342037511,1731377469153,-500.0,0.00022739,2]
[342037512,1731377469163,-2336.0,0.00022739,2]
[342037513,1731377469172,-500.0,0.00022739,2]
[342037514,1731377469181,-530.64201609,0.00022739,2]
[342037515,1731377469190,-500.0,0.00022739,2]
[342037516,1731377469200,-500.0,0.00022739,2]
[342037517,1731377469209,-500.0,0.00022739,2]
[342037518,1731377469218,-500.0,0.00022739,2]
[342037519,1731377469228,-500.0,0.00022739,2]
[342037520,1731377469237,-406.68598563,0.00022739,2]
[342037521,1731377469246,-508.42882164,0.00022739,2]
[342037522,1731377469255,-500.0,0.00022739,2]
[342037523,1731377469265,-500.0,0.00022739,2]
[342037524,1731377469274,-513.32,0.00022739,2]
[342037525,1731377469283,-500.0,0.00022739,2]
[342037526,1731377469292,-500.0,0.00022739,2]
[342037527,1731377469303,-500.0,0.00022739,2]
[342037528,1731377469314,-500.0,0.00022739,2]
[342037529,1731377469324,-500.0,0.00022739,2]
[342037530,1731377469333,-500.0,0.00022739,2]
[342037531,1731377469342,-3086.43,0.00022739,2]
[342037532,1731377469351,-500.0,0.00022739,2]
[342037533,1731377469363,-500.0,0.00022739,2]
[342037534,1731377469372,-500.0,0.00022739,2]
[342037535,1731377469382,-500.0,0.00022739,2]
[342037536,1731377469391,-500.0,0.00022739,2]
[342037537,1731377469400,-500.0,0.00022739,2]
[342037538,1731377469410,-500.0,0.00022739,2]
[342037539,1731377469419,-871.07,0.00022739,2]
[342037540,1731377469428,-540.06,0.00022739,2]
[342037541,1731377469438,-500.0,0.00022739,2]
[342037542,1731377469447,-500.0,0.00022739,2]
[342037543,1731377469456,-177.2026579,0.00022739,2]
[342037544,1731377469465,-500.0,0.00022739,2]
[342037545,1731377469474,-500.0,0.00022739,2]
[342037546,1731377469483,-500.0,0.00022739,2]
[342037547,1731377469492,-500.0,0.00022739,2]
[342037548,1731377469501,-500.0,0.00022739,2]
[342037549,1731377469510,-500.0,0.00022739,2]
[342037550,1731377469519,-573.0835702,0.00022739,2]
[342037551,1731377469529,-500.0,0.00022739,2]
[342037552,1731377469538,-500.0,0.00022739,2]
[342037553,1731377469547,-500.0,0.00022739,2]
[342037554,1731377469560,-1191.39,0.00022739,2]
[342037555,1731377469569,-500.0,0.00022739,2]
[342037556,1731377469578,-1372.71,0.00022739,2]
[342037557,1731377469587,-500.0,0.00022739,2]
[342037558,1731377469597,-500.0,0.00022739,2]
[342037559,1731377469606,-471.3710102,0.00022739,2]
[342037560,1731377469616,-500.0,0.00022739,2]
[342037561,1731377469625,-271.32492401,0.00022739,2]
[342037562,1731377469634,-500.0,0.00022739,2]
[342037563,1731377469643,-500.0,0.00022739,2]
[342037564,1731377469653,-2532.94,0.00022739,2]
[342037565,1731377469663,-527.0838512,0.00022739,2]
[342037566,1731377469672,-500.0,0.00022739,2]
[342037567,1731377469681,-500.0,0.00022739,2]
[342037568,1731377469690,-1646.47,0.00022739,2]
[342037569,1731377469699,-677.18,0.00022739,2]
[342037570,1731377469708,-500.0,0.00022739,2]
[342037571,1731377469717,-500.0,0.00022739,2]
[342037572,1731377469726,-500.0,0.00022739,2]
[342037573,1731377469735,-347.52929566,0.00022739,2]
[342037574,1731377469743,-500.0,0.00022739,2]
[342037575,1731377469753,-500.0,0.00022739,2]
[342037576,1731377469762,-500.0,0.00022739,2]
[342037577,1731377469771,-500.0,0.00022739,2]
[342037578,1731377469781,-500.0,0.00022739,2]
[342037579,1731377469790,-22807.1,0.00022739,2]
[342037580,1731377469799,-629.09443447,0.00022739,2]
[342037581,1731377469811,-500.0,0.00022739,2]
[342037582,1731377469820,-500.0,0.00022739,2]
[342037583,1731377469829,-500.0,0.00022739,2]
[342037584,1731377469838,-2015.16,0.00022739,2]
[342037585,1731377469847,-500.0,0.00022739,2]
[342037586,1731377469856,-500.0,0.00022739,2]
[342037587,1731377469865,-500.0,0.00022739,2]
[342037588,1731377469874,-500.0,0.00022739,2]
[342037589,1731377469883,-500.0,0.00022739,2]
[342037590,1731377469892,-753.19,0.00022739,2]
[342037591,1731377469901,-500.0,0.00022739,2]
[342037592,1731377469910,-2052.66,0.00022739,2]
[342037593,1731377469920,-957.2,0.00022739,2]
[342037594,1731377469929,-500.0,0.00022739,2]
[342037595,1731377469938,-500.0,0.00022739,2]
[342037596,1731377469947,-500.0,0.00022739,2]
[342037597,1731377469957,-500.0,0.00022739,2]
[342037598,1731377469966,-546.04206705,0.00022739,2]
[342037599,1731377469975,-500.0,0.00022739,2]
[342037600,1731377469985,-500.0,0.00022739,2]
[342037601,1731377469995,-500.0,0.00022739,2]
[342037602,1731377470005,-759.89,0.00022739,2]
[342037603,1731377470015,-500.0,0.00022739,2]
[342037604,1731377470024,-500.0,0.00022739,2]
[342037605,1731377470034,-500.0,0.00022739,2]
[342037606,1731377470043,-500.0,0.00022739,2]
[342037607,1731377470054,-500.0,0.00022739,2]
[342037608,1731377470063,-625.69295016,0.00022739,2]
[342037609,1731377470073,-500.0,0.00022739,2]
[342037610,1731377470082,-545.76,0.00022739,2]
[342037611,1731377470091,-513.25455535,0.00022739,2]
[342037612,1731377470100,-852.66,0.00022739,2]
[342037613,1731377470109,-8115.34,0.00022739,2]
[342037614,1731377470118,-498.90388056,0.00022739,2]
[342037615,1731377470127,-500.0,0.00022739,2]
[342037616,1731377470136,-500.0,0.00022739,2]
[342037617,1731377470145,-1121.37,0.00022739,2]
[342037618,1731377470154,-500.0,0.00022739,2]
[342037619,1731377470163,-1455.72,0.00022739,2]
[342037620,1731377470173,-324.44079598,0.00022739,2]
[342037621,1731377470182,-350.88561313,0.00022739,2]
[342037622,1731377470191,-500.0,0.00022739,2]
[342037623,1731377470199,-1210.02,0.00022739,2]
[342037624,1731377470209,-500.0,0.00022739,2]
[342037625,1731377470218,-500.0,0.00022739,2]
[342037626,1731377470227,-508.00603947,0.00022739,2]
[342037627,1731377470236,-527.67257267,0.00022739,2]
[342037628,1731377470246,-500.0,0.00022739,2]
[342037629,1731377470255,-1402.44,0.00022739,2]
[342037630,1731377470264,-4023.56,0.00022739,2]
[342037631,1731377470273,-500.0,0.00022739,2]
[342037632,1731377470282,-500.0,0.00022739,2]
[342037633,1731377470291,-500.0,0.00022739,2]
[342037634,1731377470302,-500.0,0.00022739,2]
[342037635,1731377470314,-500.0,0.00022739,2]
[342037636,1731377470323,-500.0,0.00022739,2]
[342037637,1731377470332,-1547.39,0.00022739,2]
[342037638,1731377470341,-651.69,0.00022739,2]
[342037639,1731377470350,-500.0,0.00022739,2]
[342037640,1731377470360,-504.43106827,0.00022739,2]
[342037641,1731377470372,-500.0,0.00022739,2]
[342037642,1731377470382,-500.0,0.00022739,2]
[342037643,1731377470391,-655.08,0.00022739,2]
[342037644,1731377470400,-549.51692984,0.00022739,2]
[342037645,1731377470410,-500.0,0.00022739,2]
[342037646,1731377470419,-500.0,0.00022739,2]
[342037647,1731377470428,-504.94966991,0.00022739,2]
[342037648,1731377470438,-500.0,0.00022739,2]
[342037649,1731377470448,-500.0,0.00022739,2]
[342037650,1731377470458,-500.0,0.00022739,2]
[342037651,1731377470468,-500.0,0.00022739,2]
[342037652,1731377470477,-500.0,0.00022739,2]
[342037653,1731377470486,-500.0,0.00022739,2]
[342037654,1731377470496,-886.59,0.00022739,2]
[342037655,1731377470505,-500.0,0.00022739,2]
[342037656,1731377470514,-500.0,0.00022739,2]
[342037657,1731377470523,-500.0,0.00022739,2]
[342037658,1731377470532,-500.0,0.00022739,2]
[342037659,1731377470541,-633.24418579,0.00022739,2]
[342037660,1731377470554,-500.0,0.00022739,2]
[342037661,1731377470564,-500.0,0.00022739,2]
[342037662,1731377470573,-216.76211118,0.00022739,2]
[342037663,1731377470582,-508.65218157,0.00022739,2]
[342037664,1731377470591,-500.0,0.00022739,2]
[342037665,1731377470601,-500.0,0.00022739,2]
[342037666,1731377470610,-4327.77,0.00022739,2]
[342037667,1731377470619,-1028.27,0.00022739,2]
[342037668,1731377470628,-500.0,0.00022739,2]
[342037669,1731377470638,-500.0,0.00022739,2]
[342037670,1731377470647,-15293.97,0.00022739,2]
[342037671,1731377470656,-500.0,0.00022739,2]
[342037672,1731377470665,-500.0,0.00022739,2]
[342037673,1731377470674,-500.0,0.00022739,2]
[342037674,1731377470684,-500.0,0.00022739,2]
[342037675,1731377470693,-518.40657608,0.00022739,2]
[342037676,1731377470703,-500.0,0.00022739,2]
[342037677,1731377470712,-500.0,0.00022739,2]
[342037678,1731377470721,-517.68693142,0.00022739,2]
[342037679,1731377470730,-500.0,0.00022739,2]
[342037680,1731377470739,-500.0,0.00022739,2]
[342037681,1731377470748,-506.77316698,0.00022739,2]
[342037682,1731377470758,-500.0,0.00022739,2]
[342037683,1731377470767,-500.0,0.00022739,2]
[342037684,1731377470775,-487.59723708,0.00022739,2]
[342037685,1731377470785,-500.0,0.00022739,2]
[342037686,1731377470794,-10812.06,0.00022739,2]
[342037687,1731377470806,-500.0,0.00022739,2]
[342037688,1731377470815,-500.0,0.00022739,2]
[342037689,1731377470825,-527.89424935,0.00022739,2]
[342037690,1731377470834,-500.0,0.00022739,2]
[342037691,1731377470843,-500.0,0.00022739,2]
[342037692,1731377470853,-500.0,0.00022739,2]
[342037693,1731377470863,-500.0,0.00022739,2]
[342037694,1731377470872,-500.0,0.00022739,2]
[342037695,1731377470882,-500.0,0.00022739,2]
[342037696,1731377470891,-504.33978782,0.00022739,2]
[342037697,1731377470901,-500.0,0.00022739,2]
[342037698,1731377470910,-504.91817709,0.00022739,2]
[342037699,1731377470919,-909.56,0.00022739,2]
[342037700,1731377470928,-500.0,0.00022739,2]
[342037701,1731377470937,-558.80914391,0.00022739,2]
[342037702,1731377470947,-2453.18,0.00022739,2]
[342037703,1731377470956,-616.45,0.00022739,2]
[342037704,1731377470965,-528.29921889,0.00022739,2]
[342037705,1731377470974,-500.0,0.00022739,2]
[342037706,1731377470984,-500.0,0.00022739,2]
[342037707,1731377470993,-5895.01,0.00022739,2]
[342037708,1731377471002,-7159.21,0.00022739,2]
[342037709,1731377471011,-505.57,0.00022739,2]
[342037710,1731377471021,-500.0,0.00022739,2]
[342037711,1731377471030,-1860.51,0.00022739,2]
[342037712,1731377471040,-501.80593416,0.00022739,2]
[342037713,1731377471170,-500.0,0.00022739,2]
[342037714,1731377471182,-500.0,0.00022739,2]
[342037715,1731377471191,-500.0,0.00022739,2]
[342037716,1731377471201,-698.56,0.00022739,2]
[342037717,1731377471210,-500.0,0.00022739,2]
[342037718,1731377471220,-500.0,0.00022739,2]
[342037719,1731377471229,-507.79325845,0.00022739,2]
[342037720,1731377471238,-742.56,0.00022739,2]
[342037721,1731377471250,-500.0,0.00022739,2]
[342037722,1731377471260,-500.0,0.00022739,2]
[342037723,1731377471269,-500.0,0.00022739,2]
[342037724,1731377471279,-500.0,0.00022739,2]
[342037725,1731377471288,-500.0,0.00022739,2]
[342037726,1731377471298,-254.97647243,0.00022739,2]
[342037727,1731377471309,-500.0,0.00022739,2]
[342037728,1731377471319,-500.0,0.00022739,2]
[342037729,1731377471328,-500.0,0.00022739,2]
[342037730,1731377471338,-540.6,0.00022739,2]
[342037731,1731377471347,-500.0,0.00022739,2]
[342037732,1731377471357,-529.78583393,0.00022739,2]
[342037733,1731377471370,-500.0,0.00022739,2]
[342037734,1731377471379,-500.0,0.00022739,2]
[342037735,1731377471388,-508.51454135,0.00022739,2]
[342037736,1731377471397,-603.36412405,0.00022739,2]
[342037737,1731377471406,-1171.19,0.00022739,2]
[342037738,1731377471415,-500.0,0.00022739,2]
[342037739,1731377471424,-1721.31,0.00022739,2]
[342037740,1731377471434,-500.0,0.00022739,2]
[342037741,1731377471443,-500.0,0.00022739,2]
[342037742,1731377471452,-500.0,0.00022739,2]
[342037743,1731377471462,-1319.56,0.00022739,2]
[342037744,1731377471472,-500.0,0.00022739,2]
[342037745,1731377471481,-500.0,0.00022739,2]
[342037746,1731377471490,-629.72,0.00022739,2]
[342037747,1731377471500,-160.0,0.0002274,13]
[342037748,1731377471509,-500.0,0.00022749,8]
[342037749,1731377471518,-465.94600016,0.00022806,2]
[342037750,1731377471529,-160.0,0.00022835,14]
[342037751,1731377471538,-2150.56,0.00022919,3]
[342037752,1731377471547,-1075.28,0.00022919,3]
[342037753,1731377471559,-537.64,0.00022919,3]
[342037754,1731377471568,-420.0,0.00022927,2]
[342037755,1731377471577,-160.0,0.0002293,15]
[342037756,1731377471586,-200.0,0.0002294,9]
[342037757,1731377471595,-161.74770627,0.00022942,2]
[342037758,1731377471604,-1012.97811832,0.00022942,2]
[342037759,1731377471614,-1000.0,0.00022942,2]
[342037760,1731377471624,-1000.0,0.00022942,2]
[342037761,1731377471633,-563.40491293,0.00022942,2]
[342037762,1731377471642,-515.01818761,0.00022942,2]
[342037763,1731377471651,-1004.17492273,0.00022942,2]
[342037764,1731377471660,-500.39089912,0.00022942,2]
[342037765,1731377471669,-832.63174225,0.00022942,2]
[342037766,1731377471679,-1000.0,0.00022942,2]
[342037767,1731377471688,-166.666666,0.00022944,2]
[342037768,1731377471698,-157.44705242,0.00023013,2]
[342037769,1731377471707,-500.0,0.00023013,2]
[342037770,1731377471716,-160.8371663,0.00023013,2]
[342037771,1731377471725,-848.51851,0.00023013,2]
[342037772,1731377471734,-500.0,0.00023013,2]
[342037773,1731377471743,-804.37201275,0.00023013,2]
[342037774,1731377471753,-500.0,0.00023013,2]
[342037775,1731377471763,-420.14188209,0.00023013,2]
[342037776,1731377471772,-506.46706869,0.00023013,2]
[342037777,1731377471781,-500.0,0.00023013,2]
[342037778,1731377471790,-500.0,0.00023013,2]
[342037779,1731377471800,-500.0,0.00023013,2]
[342037780,1731377471813,-500.0,0.00023013,2]
[342037781,1731377471822,-578.16016343,0.00023013,2]
[342037782,1731377471832,-666.67,0.00023013,2]
[342037783,1731377471841,-500.0,0.00023013,2]
[342037784,1731377471850,-1000.0,0.00023013,2]
[342037785,1731377471859,-348.5682011,0.00023013,2]
[342037786,1731377471868,-500.0,0.00023013,2]
[342037787,1731377471877,-500.0,0.00023013,2]
[342037788,1731377471887,-562.25134364,0.00023013,2]
[342037789,1731377471896,-474.92772853,0.00023013,2]
[342037790,1731377471906,-500.0,0.00023013,2]
[342037791,1731377471916,-500.0,0.00023013,2]
[342037792,1731377471925,-505.86750535,0.00023013,2]
[342037793,1731377471935,-507.80810307,0.00023013,2]
[342037794,1731377471944,-500.0,0.00023013,2]
[342037795,1731377471954,-500.0,0.00023013,2]
[342037796,1731377471963,-500.0,0.00023013,2]
[342037797,1731377471973,-510.95381307,0.00023013,2]
[342037798,1731377471982,-500.0,0.00023013,2]
[342037799,1731377471992,-500.0,0.00023013,2]
[342037800,1731377472001,-500.0,0.00023013,2]
[342037801,1731377472011,-500.57724903,0.00023013,2]
[342037802,1731377472021,-500.0,0.00023013,2]
[342037803,1731377472030,-500.0,0.00023013,2]
[342037804,1731377472039,-500.0,0.00023013,2]
[342037805,1731377472048,-555.24,0.00023013,2]
[342037806,1731377472060,-500.0,0.00023013,2]
[342037807,1731377472069,-500.0,0.00023013,2]
[342037808,1731377472078,-534.65055494,0.00023013,2]
[342037809,1731377472087,-500.0,0.00023013,2]
[342037810,1731377472097,-500.0,0.00023013,2]
[342037811,1731377472106,-500.0,0.00023013,2]
[342037812,1731377472116,-500.0,0.00023013,2]
[342037813,1731377472125,-500.0,0.00023013,2]
[342037814,1731377472134,-500.0,0.00023013,2]
[342037815,1731377472143,-500.0,0.00023013,2]
[342037816,1731377472153,-374.20703818,0.00023013,2]
[342037817,1731377472162,-608.85,0.00023013,2]
[342037818,1731377472170,-500.0,0.00023013,2]
[342037819,1731377472180,-500.0,0.00023013,2]
[342037820,1731377472189,-618.46,0.00023013,2]
[342037821,1731377472198,-500.0,0.00023013,2]
[342037822,1731377472208,-1002.33,0.00023013,2]
[342037823,1731377472217,-500.0,0.00023013,2]
[342037824,1731377472227,-708.62,0.00023013,2]
[342037825,1731377472236,-500.0,0.00023013,2]
[342037826,1731377472245,-500.0,0.00023013,2]
[342037827,1731377472254,-500.0,0.00023013,2]
[342037828,1731377472263,-500.0,0.00023013,2]
[342037829,1731377472273,-500.0,0.00023013,2]
[342037830,1731377472282,-500.0,0.00023013,2]
[342037831,1731377472291,-506.055174,0.00023013,2]
[342037832,1731377472300,-500.0,0.00023013,2]
[342037833,1731377472312,-504.95335718,0.00023013,2]
[342037834,1731377472321,-501.96651934,0.00023013,2]
[342037835,1731377472330,-500.0,0.00023013,2]
[342037836,1731377472340,-500.0,0.00023013,2]
[342037837,1731377472349,-500.0,0.00023013,2]
[342037838,1731377472358,-500.0,0.00023013,2]
[342037839,1731377472371,-753.43,0.00023013,2]
[342037840,1731377472380,-528.9331987,0.00023013,2]
[342037841,1731377472390,-500.0,0.00023013,2]
[342037842,1731377472399,-500.0,0.00023013,2]
[342037843,1731377472408,-594.56775687,0.00023013,2]
[342037844,1731377472417,-500.0,0.00023013,2]
[342037845,1731377472426,-500.0,0.00023013,2]
[342037846,1731377472435,-545.79,0.00023013,2]
[342037847,1731377472446,-500.0,0.00023013,2]
[342037848,1731377472456,-500.0,0.00023013,2]
[342037849,1731377472465,-200.0,0.00023013,2]
[342037850,1731377472474,-304.9429126,0.00023013,2]
[342037851,1731377472483,-545.5906982,0.00023013,2]
[342037852,1731377472492,-500.0,0.00023013,2]
[342037853,1731377472501,-500.0,0.00023013,2]
[342037854,1731377472510,-500.0,0.00023013,2]
[342037855,1731377472519,-500.0,0.00023013,2]
[342037856,1731377472528,-513.89875513,0.00023013,2]
[342037857,1731377472537,-500.0,0.00023013,2]
[342037858,1731377472545,-500.0,0.00023013,2]
[342037859,1731377472556,-500.0,0.00023013,2]
[342037860,1731377472566,-500.0,0.00023013,2]
[342037861,1731377472575,-500.0,0.00023013,2]
[342037862,1731377472584,-797.39,0.00023013,2]
[342037863,1731377472593,-500.0,0.00023013,2]
[342037864,1731377472602,-500.0,0.00023013,2]
[342037865,1731377472612,-500.0,0.00023013,2]
[342037866,1731377472621,-500.0,0.00023013,2]
[342037867,1731377472631,-500.0,0.00023013,2]
[342037868,1731377472640,-692.56,0.00023013,2]
[342037869,1731377472649,-500.0,0.00023013,2]
[342037870,1731377472658,-500.0,0.00023013,2]
[342037871,1731377472667,-500.0,0.00023013,2]
[342037872,1731377472676,-500.0,0.00023013,2]
[342037873,1731377472686,-500.0,0.00023013,2]
[342037874,1731377472696,-160.70999821,0.00023013,2]
[342037875,1731377472705,-500.0,0.00023013,2]
[342037876,1731377472714,-2336.0,0.00023013,2]
[342037877,1731377472724,-500.0,0.00023013,2]
[342037878,1731377472733,-500.0,0.00023013,2]
[342037879,1731377472743,-500.0,0.00023013,2]
[342037880,1731377472752,-503.0840705,0.00023013,2]
[342037881,1731377472762,-500.0,0.00023013,2]
[342037882,1731377472774,-500.0,0.00023013,2]
[342037883,1731377472784,-500.0,0.00023013,2]
[342037884,1731377472793,-500.0,0.00023013,2]
[342037885,1731377472802,-513.32,0.00023013,2]
[342037886,1731377472816,-500.0,0.00023013,2]
[342037887,1731377472827,-500.0,0.00023013,2]
[342037888,1731377472836,-500.0,0.00023013,2]
[342037889,1731377472845,-500.0,0.00023013,2]
[342037890,1731377472855,-500.0,0.00023013,2]
[342037891,1731377472864,-500.0,0.00023013,2]
[342037892,1731377472873,-3086.43,0.00023013,2]
[342037893,1731377472882,-500.0,0.00023013,2]
[342037894,1731377472892,-505.53260528,0.00023013,2]
[342037895,1731377472901,-500.0,0.00023013,2]
[342037896,1731377472911,-500.0,0.00023013,2]
[342037897,1731377472920,-500.0,0.00023013,2]
[342037898,1731377472929,-500.0,0.00023013,2]
[342037899,1731377472939,-500.0,0.00023013,2]
[342037900,1731377473046,-871.07,0.00023013,2]
[342037901,1731377473060,-540.06,0.00023013,2]
[342037902,1731377473069,-500.0,0.00023013,2]
[342037903,1731377473078,-500.0,0.00023013,2]
[342037904,1731377473087,-500.0,0.00023013,2]
[342037905,1731377473097,-500.0,0.00023013,2]
[342037906,1731377473106,-500.0,0.00023013,2]
[342037907,1731377473115,-500.0,0.00023013,2]
[342037908,1731377473125,-500.0,0.00023013,2]
[342037909,1731377473134,-500.0,0.00023013,2]
[342037910,1731377473143,-500.0,0.00023013,2]
[342037911,1731377473152,-500.0,0.00023013,2]
[342037912,1731377473162,-500.0,0.00023013,2]
[342037913,1731377473171,-1191.39,0.00023013,2]
[342037914,1731377473180,-500.0,0.00023013,2]
[342037915,1731377473189,-1372.71,0.00023013,2]
[342037916,1731377473198,-500.0,0.00023013,2]
[342037917,1731377473208,-500.0,0.00023013,2]
[342037918,1731377473217,-500.0,0.00023013,2]
[342037919,1731377473226,-500.0,0.00023013,2]
[342037920,1731377473235,-500.0,0.00023013,2]
[342037921,1731377473244,-2532.94,0.00023013,2]
[342037922,1731377473253,-503.45774871,0.00023013,2]
[342037923,1731377473262,-500.0,0.00023013,2]
[342037924,1731377473271,-1646.47,0.00023013,2]
[342037925,1731377473280,-677.18,0.00023013,2]
[342037926,1731377473289,-500.0,0.00023013,2]
[342037927,1731377473299,-500.0,0.00023013,2]
[342037928,1731377473311,-500.0,0.00023013,2]
[342037929,1731377473320,-500.0,0.00023013,2]
[342037930,1731377473330,-500.0,0.00023013,2]
[342037931,1731377473339,-500.0,0.00023013,2]
[342037932,1731377473349,-514.70000169,0.00023013,2]
[342037933,1731377473358,-500.0,0.00023013,2]
[342037934,1731377473371,-22807.1,0.00023013,2]
[342037935,1731377473381,-503.70891044,0.00023013,2]
[342037936,1731377473390,-500.0,0.00023013,2]
[342037937,1731377473399,-500.0,0.00023013,2]
[342037938,1731377473408,-2015.16,0.00023013,2]
[342037939,1731377473418,-500.0,0.00023013,2]
[342037940,1731377473428,-500.0,0.00023013,2]
[342037941,1731377473438,-500.0,0.00023013,2]
[342037942,1731377473448,-500.0,0.00023013,2]
[342037943,1731377473458,-500.0,0.00023013,2]
[342037944,1731377473467,-753.19,0.00023013,2]
[342037945,1731377473476,-500.0,0.00023013,2]
[342037946,1731377473486,-2052.66,0.00023013,2]
[342037947,1731377473495,-957.2,0.00023013,2]
[342037948,1731377473504,-500.0,0.00023013,2]
[342037949,1731377473513,-500.0,0.00023013,2]
[342037950,1731377473522,-500.0,0.00023013,2]
[342037951,1731377473531,-500.0,0.00023013,2]
[342037952,1731377473540,-500.0,0.00023013,2]
[342037953,1731377473549,-500.0,0.00023013,2]
[342037954,1731377473559,-500.0,0.00023013,2]
[342037955,1731377473567,-759.89,0.00023013,2]
[342037956,1731377473577,-500.0,0.00023013,2]
[342037957,1731377473587,-167.81339127,0.00023013,2]
[342037958,1731377473596,-500.63784261,0.00023013,2]
[342037959,1731377473605,-541.02708582,0.00023013,2]
[342037960,1731377473615,-465.33575362,0.00023013,2]
[342037961,1731377473624,-500.0,0.00023013,2]
[342037962,1731377473634,-545.76,0.00023013,2]
[342037963,1731377473644,-852.66,0.00023013,2]
[342037964,1731377473653,-8115.34,0.00023013,2]
[342037965,1731377473663,-508.24625842,0.00023013,2]
[342037966,1731377473672,-503.57915245,0.00023013,2]
[342037967,1731377473682,-1121.37,0.00023013,2]
[342037968,1731377473691,-500.0,0.00023013,2]
[342037969,1731377473700,-1455.72,0.00023013,2]
[342037970,1731377473710,-500.0,0.00023013,2]
[342037971,1731377473719,-1210.02,0.00023013,2]
[342037972,1731377473728,-500.0,0.00023013,2]
[342037973,1731377473738,-500.0,0.00023013,2]
[342037974,1731377473747,-500.0,0.00023013,2]
[342037975,1731377473756,-1402.44,0.00023013,2]
[342037976,1731377473765,-4023.56,0.00023013,2]
[342037977,1731377473774,-500.0,0.00023013,2]
[342037978,1731377473784,-500.0,0.00023013,2]
[342037979,1731377473793,-500.0,0.00023013,2]
[342037980,1731377473802,-590.24322325,0.00023013,2]
[342037981,1731377473814,-500.0,0.00023013,2]
[342037982,1731377473823,-500.0,0.00023013,2]
[342037983,1731377473833,-1547.39,0.00023013,2]
[342037984,1731377473842,-651.69,0.00023013,2]
[342037985,1731377473851,-500.0,0.00023013,2]
[342037986,1731377473861,-537.73363051,0.00023013,2]
[342037987,1731377473870,-500.0,0.00023013,2]
[342037988,1731377473880,-655.08,0.00023013,2]
[342037989,1731377473889,-500.0,0.00023013,2]
[342037990,1731377473899,-503.57572657,0.00023013,2]
[342037991,1731377473908,-500.0,0.00023013,2]
[342037992,1731377473917,-198.09476329,0.00023013,2]
[342037993,1731377473927,-505.92873631,0.00023013,2]
[342037994,1731377473936,-500.0,0.00023013,2]
[342037995,1731377473946,-500.0,0.00023013,2]
[342037996,1731377473956,-500.0,0.00023013,2]
[342037997,1731377473965,-886.59,0.00023013,2]
[342037998,1731377473974,-500.0,0.00023013,2]
[342037999,1731377473983,-500.0,0.00023013,2]
[342038000,1731377473992,-500.0,0.00023013,2]
[342038001,1731377474002,-500.0,0.00023013,2]
[342038002,1731377474011,-500.0,0.00023013,2]
[342038003,1731377474021,-500.0,0.00023013,2]
[342038004,1731377474030,-507.67546633,0.00023013,2]
[342038005,1731377474040,-500.0,0.00023013,2]
[342038006,1731377474049,-4327.77,0.00023013,2]